fUST/lending_fUST_20250729
["ID","MTS","AMOUNT","RATE_DAILY","PERIOD"]
[375955480,1753798247830,-151.0,0.00019415,2]
[375955482,1753798247841,-460.0,0.00019415,2]
[375955484,1753798247850,-460.0,0.00019415,2]
[375955486,1753798247860,-460.0,0.00019415,2]
[375955487,1753798247870,-1152.91,0.00019415,2]
[375955490,1753798247881,-460.0,0.00019415,2]
[375955491,1753798247892,-460.0,0.00019415,2]
[375955494,1753798247902,-460.0,0.00019415,2]
[375955495,1753798247912,-871.57,0.00019415,2]
[375955497,1753798247921,-753.547538,0.00019415,2]
[375955499,1753798247930,-753.547538,0.00019415,2]
[375955501,1753798247940,-898.47,0.00019415,2]
[375955503,1753798247950,-200.591636,0.00019415,2]
[375955505,1753798247959,-200.591636,0.00019415,2]
[375955507,1753798247970,-151.0,0.00019415,2]
[375955509,1753798247981,-460.0,0.00019415,2]
[375955511,1753798247996,-460.0,0.00019415,2]
[375955513,1753798248006,-460.0,0.00019415,2]
[375955515,1753798248016,-470.95,0.00019415,2]
[375955517,1753798248027,-460.0,0.00019415,2]
[375955519,1753798248036,-460.0,0.00019416,2]
[375955521,1753798248046,-460.0,0.00019416,2]
[375955523,1753798248056,-460.0,0.00019416,2]
[375955525,1753798248066,-460.0,0.00019416,2]
[375955527,1753798248076,-285.56053771,0.00019416,2]
[375955529,1753798248087,-460.0,0.00019416,2]
[375955531,1753798248097,-460.0,0.00019416,2]
[375955533,1753798248108,-460.0,0.00019416,2]
[375955535,1753798248118,-460.0,0.00019416,2]
[375955537,1753798248129,-460.0,0.00019416,2]
[375955539,1753798248139,-530.05406527,0.00019416,2]
[375955541,1753798248149,-461.94036111,0.00019416,2]
[375955543,1753798248160,-460.0,0.00019416,2]
[375955545,1753798248171,-460.0,0.00019416,2]
[375955547,1753798248181,-460.0,0.00019416,2]
[375955549,1753798248191,-151.0,0.00019416,2]
[375955551,1753798248201,-460.0,0.00019416,2]
[375955553,1753798248211,-460.0,0.00019416,2]
[375955555,1753798248221,-460.0,0.00019416,2]
[375955557,1753798248232,-460.0,0.00019416,2]
[375955559,1753798248247,-460.0,0.00019416,2]
[375955561,1753798248256,-494.39,0.00019416,2]
[375955563,1753798248265,-460.0,0.00019416,2]
[375955565,1753798248276,-460.0,0.00019416,2]
[375955567,1753798248286,-316.89,0.00019416,2]
[375955569,1753798248296,-224.598849,0.00019416,2]
[375955571,1753798248306,-224.598849,0.00019416,2]
[375955573,1753798248315,-151.0,0.00019416,2]
[375955575,1753798248325,-460.0,0.00019416,2]
[375955577,1753798248335,-522.49,0.00019416,2]
[375955580,1753798248345,-460.0,0.00019416,2]
[375955581,1753798248355,-505.36,0.00019416,2]
[375955584,1753798248365,-677.88,0.00019416,2]
[375955586,1753798248374,-900.97,0.00019416,2]
[375955588,1753798248384,-994.32,0.00019416,2]
[375955590,1753798248394,-553.81,0.00019416,2]
[375955591,1753798248405,-460.0,0.00019416,2]
[375955593,1753798248415,-465.2037696,0.00019416,2]
[375955596,1753798248425,-753.547538,0.00019416,2]
[375955597,1753798248435,-1056.7,0.00019416,2]
[375955600,1753798248445,-753.547538,0.00019416,2]
[375955602,1753798248455,-460.0,0.00019416,2]
[375955604,1753798248464,-3342.42,0.00019416,2]
[375955606,1753798248474,-460.0,0.00019416,2]
[375955608,1753798248484,-460.0,0.00019416,2]
[375955609,1753798248497,-460.0,0.00019416,2]
[375955612,1753798248508,-545.81,0.00019416,2]
[375955613,1753798248518,-799.74,0.00019416,2]
[375955615,1753798248527,-460.0,0.00019416,2]
[375955618,1753798248538,-669.12,0.00019416,2]
[375955620,1753798248548,-460.0,0.00019416,2]
[375955622,1753798248557,-630.79,0.00019416,2]
[375955624,1753798248567,-5105.66,0.00019416,2]
[375955625,1753798248577,-2380.97,0.00019416,2]
[375955628,1753798248587,-650.39,0.00019416,2]
[375955630,1753798248597,-636.81,0.00019416,2]
[375955632,1753798248607,-2898.17,0.00019416,2]
[375955634,1753798248618,-485.56,0.00019416,2]
[375955636,1753798248628,-597.34,0.00019416,2]
[375955638,1753798248637,-1336.89,0.00019416,2]
[375955640,1753798248647,-460.0,0.00019416,2]
[375955642,1753798248656,-460.0,0.00019416,2]
[375955644,1753798248666,-625.91,0.00019416,2]
[375955646,1753798248676,-214.321678,0.00019416,2]
[375955648,1753798248686,-460.0,0.00019416,2]
[375955650,1753798248695,-460.0,0.00019416,2]
[375955652,1753798248705,-214.321678,0.00019416,2]
[375955654,1753798248717,-460.0,0.00019416,2]
[375955656,1753798248726,-460.0,0.00019416,2]
[375955658,1753798248736,-460.0,0.00019416,2]
[375955659,1753798248748,-553.5,0.00019416,2]
[375955662,1753798248758,-460.0,0.00019416,2]
[375955663,1753798248767,-2579.62,0.00019416,2]
[375955665,1753798248780,-460.0,0.00019416,2]
[375955667,1753798248790,-460.0,0.00019416,2]
[375955669,1753798248799,-625.47,0.00019416,2]
[375955671,1753798248809,-151.0,0.00019416,2]
[375955673,1753798248819,-821.8,0.00019416,2]
[375955675,1753798248828,-2056.26,0.00019416,2]
[375955677,1753798248838,-460.0,0.00019416,2]
[375955679,1753798248847,-778.41,0.00019416,2]
[375955681,1753798248857,-2582.84,0.00019416,2]
[375955683,1753798248866,-2493.62,0.00019416,2]
[375955685,1753798248876,-460.0,0.00019416,2]
[375955687,1753798248885,-460.0,0.00019416,2]
[375955689,1753798248895,-1848.43,0.00019416,2]
[375955691,1753798248904,-775.4,0.00019416,2]
[375955693,1753798248914,-2984.75,0.00019416,2]
[375955694,1753798248924,-460.0,0.00019416,2]
[375955696,1753798248934,-460.0,0.00019416,2]
[375955698,1753798248944,-460.0,0.00019416,2]
[375955700,1753798248954,-7652.11,0.00019417,2]
[375955702,1753798248963,-1608.73,0.00019417,2]
[375955704,1753798248973,-151.0,0.00019417,2]
[375955707,1753798248984,-1926.13,0.00019417,2]
[375955709,1753798248996,-151.0,0.00019417,2]
[375955711,1753798249007,-151.0,0.00019417,2]
[375955713,1753798249016,-2972.17,0.00019417,2]
[375955715,1753798249026,-710.73,0.00019417,2]
[375955716,1753798249036,-2694.92,0.00019417,2]
[375955718,1753798249046,-200.591636,0.00019417,2]
[375955721,1753798249057,-200.591636,0.00019417,2]
[375955722,1753798249067,-151.0,0.00019417,2]
[375955724,1753798249076,-151.0,0.00019417,2]
[375955726,1753798249087,-151.0,0.00019417,2]
[375955728,1753798249096,-2192.69,0.00019417,2]
[375955730,1753798249107,-460.0,0.00019417,2]
[375955732,1753798249117,-263.13610505,0.00019421,2]
[375955734,1753798249128,-501.58293631,0.00019421,2]
[375955736,1753798249138,-501.25117299,0.00019421,2]
[375955738,1753798249149,-1000.0,0.00019421,2]
[375955740,1753798249162,-1000.0,0.00019421,2]
[375955742,1753798249172,-500.0,0.00019421,2]
[375955744,1753798249182,-1000.0,0.00019421,2]
[375955746,1753798249193,-958.68197297,0.00019421,2]
[375955748,1753798249203,-1000.0,0.00019421,2]
[375955750,1753798249214,-1000.0,0.00019421,2]
[375955752,1753798249226,-501.53444438,0.00019421,2]
[375955754,1753798249244,-1000.0,0.00019421,2]
[375955756,1753798249254,-1000.0,0.00019421,2]
[375955758,1753798249264,-1000.0,0.00019421,2]
[375955760,1753798249274,-151.0,0.00019421,2]
[375955762,1753798249284,-500.26382855,0.0001943,2]
[375955764,1753798249294,-161.2805488,0.0001943,2]
[375955766,1753798249303,-1479.91488142,0.00019452,2]
[375955768,1753798249313,-588.186503,0.00019462,2]
[375955770,1753798249323,-1000.0,0.000195,2]
[375955772,1753798249333,-151.0,0.00019516,2]
[375955774,1753798249343,-151.0,0.00019516,2]
[375955776,1753798249352,-151.0,0.00019516,2]
[375955778,1753798249362,-151.0,0.00019516,2]
[375955780,1753798249372,-151.0,0.00019516,2]
[375955782,1753798249382,-151.0,0.00019516,2]
[375955784,1753798249392,-151.0,0.00019516,2]
[375955786,1753798249402,-151.0,0.00019516,2]
[375955789,1753798249414,-151.0,0.00019516,2]
[375955790,1753798249424,-256.563058,0.00019516,2]
[375955793,1753798249434,-256.563058,0.00019516,2]
[375955795,1753798249444,-348.592089,0.00019516,2]
[375955797,1753798249455,-348.592089,0.00019516,2]
[375955798,1753798249464,-151.0,0.00019517,2]
[375955800,1753798249474,-369.078666,0.00019517,2]
[375955802,1753798249484,-369.078666,0.00019517,2]
[375955804,1753798249497,-245.520073,0.00019517,2]
[375955806,1753798249507,-245.520073,0.00019517,2]
[375955809,1753798249518,-736.158304,0.00019518,2]
[375955811,1753798249529,-736.158304,0.00019518,2]
[375955813,1753798249539,-602.24277656,0.0001952,2]
[375955815,1753798249549,-500.0,0.0001952,2]
[375955817,1753798249561,-151.0,0.0001952,2]
[375955819,1753798249570,-500.0,0.0001952,2]
[375955821,1753798249580,-198.0,0.0001952,2]
[375955823,1753798249591,-202.87319312,0.0001952,2]
[375955825,1753798249600,-151.0,0.0001952,2]
[375955827,1753798249610,-151.0,0.0001952,2]
[375955829,1753798249620,-250.13414532,0.0001952,2]
[375955831,1753798249630,-201.72492483,0.0001952,2]
[375955833,1753798249640,-151.0,0.0001952,2]
[375955835,1753798249649,-500.0,0.0001952,2]
[375955837,1753798249659,-500.0,0.0001952,2]
[375955839,1753798249668,-151.0,0.0001952,2]
[375955841,1753798249678,-151.0,0.0001952,2]
[375955843,1753798249688,-151.0,0.0001952,2]
[375955845,1753798249697,-500.0,0.0001952,2]
[375955847,1753798249710,-254.0903166,0.0001952,2]
[375955849,1753798249721,-151.0,0.0001952,2]
[375955851,1753798249731,-151.69535298,0.0001952,2]
[375955865,1753798249864,-500.0,0.0001952,2]
[375955867,1753798249879,-151.0,0.0001952,2]
[375955869,1753798249891,-644.0,0.0001952,2]
[375955871,1753798249901,-155.667427,0.0001952,2]
[375955873,1753798249911,-151.0,0.00019531,2]
[375955875,1753798249921,-224.598849,0.00019531,2]
[375955877,1753798249931,-224.598849,0.00019531,2]
[375955879,1753798249941,-151.0,0.00019531,2]
[375955881,1753798249950,-214.321678,0.00019531,2]
[375955883,1753798249960,-214.321678,0.00019531,2]
[375955885,1753798249970,-500.0,0.00019532,2]
[375955887,1753798249979,-226.59785844,0.00019665,2]
[375955889,1753798249990,-151.0,0.0001967,2]
[375955891,1753798250000,-151.0,0.0001967,2]
[375955894,1753798250010,-278.443923,0.0001967,2]
[375955895,1753798250019,-278.443923,0.0001967,2]
[375955898,1753798250029,-151.0,0.0001967,2]
[375955900,1753798250039,-460.0,0.00019689,2]
[375955902,1753798250048,-460.0,0.00019689,2]
[375955904,1753798250058,-460.0,0.00019689,2]
[375955906,1753798250069,-460.0,0.00019689,2]
[375955908,1753798250079,-801.65,0.00019689,2]
[375955909,1753798250088,-151.0,0.00019689,2]
[375955911,1753798250098,-562.06501111,0.00019689,2]
[375955913,1753798250108,-859.59,0.00019689,2]
[375955916,1753798250119,-460.0,0.00019689,2]
[375955917,1753798250129,-153.617775,0.00019689,2]
[375955920,1753798250140,-460.0,0.00019689,2]
[375955921,1753798250150,-460.0,0.00019689,2]
[375955923,1753798250162,-460.0,0.00019689,2]
[375955926,1753798250173,-460.0,0.00019689,2]
[375955927,1753798250183,-460.0,0.00019689,2]
[375955929,1753798250194,-1003.41,0.00019689,2]
[375955931,1753798250204,-151.0,0.00019689,2]
[375955933,1753798250214,-770.96,0.00019689,2]
[375955935,1753798250225,-468.33,0.00019689,2]
[375955937,1753798250237,-463.79,0.00019689,2]
[375955940,1753798250254,-151.0,0.00019689,2]
[375955942,1753798250264,-460.0,0.00019689,2]
[375955943,1753798250274,-460.0,0.00019689,2]
[375955946,1753798250284,-1152.91,0.00019689,2]
[375955948,1753798250293,-460.0,0.00019689,2]
[375955950,1753798250304,-224.598849,0.00019689,2]
[375955952,1753798250313,-224.598849,0.00019689,2]
[375955954,1753798250323,-151.0,0.00019689,2]
[375955956,1753798250332,-460.0,0.00019689,2]
[375955958,1753798250341,-871.57,0.00019689,2]
[375955960,1753798250351,-753.547538,0.00019689,2]
[375955962,1753798250361,-753.547538,0.00019689,2]
[375955964,1753798250370,-898.47,0.00019689,2]
[375955966,1753798250379,-200.591636,0.00019689,2]
[375955968,1753798250388,-200.591636,0.00019689,2]
[375955970,1753798250398,-151.0,0.00019689,2]
[375955972,1753798250408,-151.0,0.00019689,2]
[375955974,1753798250418,-151.0,0.00019689,2]
[375955976,1753798250428,-460.0,0.00019689,2]
[375955978,1753798250438,-214.321678,0.00019689,2]
[375955980,1753798250448,-214.321678,0.00019689,2]
[375955982,1753798250458,-509.65778712,0.00019689,2]
[375955984,1753798250468,-460.0,0.00019689,2]
[375955986,1753798250478,-470.95,0.00019689,2]
[375955988,1753798250493,-460.0,0.00019689,2]
[375955990,1753798250503,-460.0,0.0001969,2]
[375955992,1753798250514,-464.78473731,0.0001969,2]
[375955994,1753798250524,-460.0,0.0001969,2]
[375955996,1753798250534,-460.0,0.0001969,2]
[375955998,1753798250545,-460.0,0.0001969,2]
[375956000,1753798250555,-460.0,0.0001969,2]
[375956002,1753798250565,-460.0,0.0001969,2]
[375956004,1753798250575,-460.0,0.0001969,2]
[375956006,1753798250584,-460.0,0.0001969,2]
[375956008,1753798250594,-460.0,0.0001969,2]
[375956010,1753798250604,-460.0,0.0001969,2]
[375956012,1753798250615,-522.49,0.0001969,2]
[375956014,1753798250625,-460.0,0.0001969,2]
[375956016,1753798250636,-505.36,0.0001969,2]
[375956019,1753798250646,-677.88,0.0001969,2]
[375956020,1753798250655,-900.97,0.0001969,2]
[375956021,1753798250665,-994.32,0.0001969,2]
[375956022,1753798250675,-553.81,0.0001969,2]
[375956023,1753798250684,-460.0,0.0001969,2]
[375956024,1753798250694,-1056.7,0.0001969,2]
[375956025,1753798250704,-460.0,0.0001969,2]
[375956026,1753798250714,-3342.42,0.0001969,2]
[375956027,1753798250724,-460.0,0.0001969,2]
[375956028,1753798250735,-460.0,0.0001969,2]
[375956029,1753798250750,-545.81,0.0001969,2]
[375956030,1753798250761,-799.74,0.0001969,2]
[375956031,1753798250770,-460.0,0.0001969,2]
[375956032,1753798250779,-669.12,0.0001969,2]
[375956033,1753798250789,-377.29454613,0.0001969,2]
[375956034,1753798250798,-630.79,0.0001969,2]
[375956035,1753798250808,-5105.66,0.0001969,2]
[375956036,1753798250817,-2380.97,0.0001969,2]
[375956037,1753798250827,-650.39,0.0001969,2]
[375956038,1753798250836,-636.81,0.0001969,2]
[375956039,1753798250845,-2898.17,0.0001969,2]
[375956040,1753798250855,-485.56,0.0001969,2]
[375956041,1753798250864,-597.34,0.0001969,2]
[375956043,1753798250873,-1336.89,0.0001969,2]
[375956045,1753798250883,-460.0,0.0001969,2]
[375956047,1753798250892,-460.0,0.0001969,2]
[375956049,1753798250901,-625.91,0.0001969,2]
[375956051,1753798250911,-460.0,0.0001969,2]
[375956053,1753798250921,-460.0,0.0001969,2]
[375956055,1753798250930,-186.05667024,0.0001969,2]
[375956057,1753798250939,-460.0,0.0001969,2]
[375956059,1753798250949,-553.5,0.0001969,2]
[375956061,1753798250958,-460.0,0.0001969,2]
[375956063,1753798250967,-2579.62,0.0001969,2]
[375956065,1753798250977,-460.0,0.0001969,2]
[375956067,1753798250986,-108.04078919,0.0001969,2]
[375956083,1753798251130,-517.42921081,0.0001969,2]
[375956085,1753798251140,-821.8,0.0001969,2]
[375956087,1753798251149,-2056.26,0.0001969,2]
[375956089,1753798251158,-460.0,0.0001969,2]
[375956091,1753798251170,-778.41,0.0001969,2]
[375956094,1753798251180,-2582.84,0.0001969,2]
[375956096,1753798251191,-2493.62,0.0001969,2]
[375956098,1753798251200,-460.0,0.0001969,2]
[375956100,1753798251210,-460.0,0.0001969,2]
[375956102,1753798251219,-1848.43,0.0001969,2]
[375956104,1753798251229,-775.4,0.0001969,2]
[375956106,1753798251238,-2984.75,0.0001969,2]
[375956108,1753798251251,-460.0,0.0001969,2]
[375956109,1753798251261,-460.0,0.0001969,2]
[375956112,1753798251272,-460.0,0.0001969,2]
[375956114,1753798251281,-151.0,0.00019691,2]
[375956115,1753798251291,-151.0,0.00019691,2]
[375956118,1753798251300,-213.76096,0.00019691,2]
[375956119,1753798251310,-213.76096,0.00019691,2]
[375956122,1753798251320,-151.0,0.00019691,2]
[375956124,1753798251329,-151.0,0.00019691,2]
[375956126,1753798251338,-7652.11,0.00019691,2]
[375956128,1753798251348,-151.0,0.00019691,2]
[375956129,1753798251357,-151.0,0.00019691,2]
[375956132,1753798251367,-1608.73,0.00019691,2]
[375956133,1753798251377,-1926.13,0.00019691,2]
[375956136,1753798251387,-151.0,0.00019691,2]
[375956137,1753798251396,-256.563058,0.00019691,2]
[375956140,1753798251406,-256.563058,0.00019691,2]
[375956142,1753798251415,-2972.17,0.00019691,2]
[375956144,1753798251424,-710.73,0.00019691,2]
[375956145,1753798251434,-224.598849,0.00019691,2]
[375956147,1753798251442,-2694.92,0.00019691,2]
[375956149,1753798251451,-224.598849,0.00019691,2]
[375956152,1753798251461,-151.0,0.00019691,2]
[375956154,1753798251470,-753.547538,0.00019691,2]
[375956156,1753798251479,-753.547538,0.00019691,2]
[375956158,1753798251491,-214.321678,0.00019691,2]
[375956160,1753798251501,-214.321678,0.00019691,2]
[375956162,1753798251510,-2192.69,0.00019691,2]
[375956164,1753798251519,-460.0,0.00019691,2]
[375956166,1753798251530,-151.0,0.00019692,2]
[375956168,1753798251540,-988.25479,0.00019692,2]
[375956170,1753798251549,-988.25479,0.00019692,2]
[375956172,1753798251559,-151.0,0.000197,2]
[375956174,1753798251569,-151.0,0.00019787,2]
[375956176,1753798251578,-736.158304,0.0001979,2]
[375956178,1753798251588,-736.158304,0.0001979,2]
[375956180,1753798251598,-151.0,0.0001979,2]
[375956182,1753798251607,-161.334964,0.0001979,2]
[375956184,1753798251617,-200.591636,0.0001979,2]
[375956186,1753798251627,-200.591636,0.0001979,2]
[375956188,1753798251637,-152.278939,0.0001979,2]
[375956190,1753798251646,-151.0,0.00019791,2]
[375956192,1753798251655,-151.0,0.00019791,2]
[375956194,1753798251665,-278.443923,0.00019791,2]
[375956196,1753798251675,-278.443923,0.00019791,2]
[375956198,1753798251684,-151.0,0.00019791,2]
[375956200,1753798251694,-151.0,0.00019791,2]
[375956202,1753798251703,-151.0,0.00019791,2]
[375956204,1753798251713,-151.0,0.00019791,2]
[375956205,1753798251723,-348.592089,0.00019791,2]
[375956207,1753798251732,-348.592089,0.00019791,2]
[375956209,1753798251744,-151.0,0.00019792,2]
[375956212,1753798251754,-312.16666667,0.00019793,2]
[375956214,1753798251765,-526.67226028,0.00019793,2]
[375956216,1753798251775,-160.0,0.00019793,2]
[375956218,1753798251785,-231.39372452,0.00019793,2]
[375956220,1753798251795,-160.0,0.00019793,2]
[375956222,1753798251805,-460.5085953,0.00019793,2]
[375956224,1753798251814,-160.0,0.00019793,2]
[375956226,1753798251823,-841.06558547,0.00019793,2]
[375956228,1753798251833,-160.0,0.00019793,2]
[375956230,1753798251842,-214.91980558,0.00019793,2]
[375956232,1753798251852,-216.1031716,0.00019793,2]
[375956234,1753798251862,-12637.12721421,0.00019793,2]
[375956236,1753798251871,-160.0,0.00019793,2]
[375956238,1753798251881,-160.0,0.00019793,2]
[375956240,1753798251891,-160.0,0.00019793,2]
[375956242,1753798251900,-160.0,0.00019793,2]
[375956244,1753798251910,-160.0,0.00019793,2]
[375956246,1753798251920,-500.0,0.00019794,2]
[375956248,1753798251930,-198.0,0.00019794,2]
[375956249,1753798251940,-613.5032694,0.00019794,2]
[375956251,1753798251950,-151.0,0.00019794,2]
[375956253,1753798251959,-151.0,0.00019794,2]
[375956255,1753798251969,-151.0,0.00019794,2]
[375956257,1753798251979,-151.0,0.00019794,2]
[375956259,1753798251992,-167.05287072,0.00019794,2]
[375956261,1753798252001,-151.0,0.00019794,2]
[375956263,1753798252011,-151.0,0.00019794,2]
[375956265,1753798252020,-500.0,0.00019794,2]
[375956267,1753798252030,-151.0,0.00019794,2]
[375956269,1753798252040,-500.0,0.00019794,2]
[375956271,1753798252050,-644.0,0.00019794,2]
[375956273,1753798252059,-197.221151,0.00019794,2]
[375956275,1753798252069,-197.221151,0.00019794,2]
[375956278,1753798252089,-988.25479,0.00019794,2]
[375956281,1753798252100,-988.25479,0.00019794,2]
[375956283,1753798252110,-151.0,0.00019794,2]
[375956285,1753798252120,-151.0,0.00019794,2]
[375956287,1753798252131,-189.237563,0.00019794,2]
[375956289,1753798252142,-151.0,0.000198,2]
[375956291,1753798252152,-151.0,0.00019809,2]
[375956293,1753798252166,-151.0,0.00019825,2]
[375956295,1753798252176,-369.078666,0.00019825,2]
[375956297,1753798252185,-369.078666,0.00019825,2]
[375956299,1753798252195,-245.520073,0.00019825,2]
[375956301,1753798252206,-245.520073,0.00019825,2]
[375956303,1753798252216,-1479.91488142,0.00019863,2]
[375956305,1753798252227,-79420.39592958,0.00019898,2]
[375956379,1753798252951,-603.15,0.00018858,3]
[375956381,1753798252961,-460.0,0.00018868,2]
[375956383,1753798252971,-151.0,0.00019246,2]
[375956385,1753798252981,-198.0,0.00019246,2]
[375956387,1753798252992,-151.0,0.0001952,2]
[375956389,1753798253003,-152.25472172,0.00019794,2]
[375956391,1753798253012,-31362.07811985,0.00019898,2]
[375956394,1753798253028,-23736.1875779,0.00019898,2]
[375957526,1753798340212,1000.0,0.00023,30]
[375957527,1753798598458,1300.0,0.0001851,2]
[375957528,1753798615126,261.34531638,0.0001851,2]
[375957531,1753798844872,334.67545577,0.00018499,2]
[375957532,1753798949449,24900.0,0.00017856,2]
[375957533,1753798969152,321.866488,0.00013699,2]
[375957599,1753799442034,-485.68,0.00018858,3]
[375957600,1753799442044,-1200.0,0.00018865,2]
[375957601,1753799442053,-300.0,0.00018865,2]
[375957602,1753799442062,-1200.0,0.00018865,2]
[375957603,1753799442071,-460.0,0.00018866,2]
[375957604,1753799442080,-460.0,0.00018866,2]
[375957605,1753799442089,-569.44219641,0.00018866,2]
[375957606,1753799442099,-507.62008194,0.00018866,2]
[375957607,1753799442109,-460.0,0.00018866,2]
[375957608,1753799442118,-460.0,0.00018866,2]
[375957609,1753799442127,-460.0,0.00018866,2]
[375957610,1753799442136,-460.0,0.00018866,2]
[375957611,1753799442146,-467.44570869,0.00018866,2]
[375957612,1753799442155,-460.0,0.00018866,2]
[375957613,1753799442165,-460.0,0.00018866,2]
[375957614,1753799442176,-460.0,0.00018866,2]
[375957615,1753799442186,-460.0,0.00018866,2]
[375957616,1753799442195,-460.0,0.00018866,2]
[375957617,1753799442205,-500.0,0.00018866,2]
[375957618,1753799442214,-460.0,0.00018866,2]
[375957619,1753799442223,-460.0,0.00018866,2]
[375957620,1753799442233,-460.0,0.00018866,2]
[375957621,1753799442244,-460.0,0.00018866,2]
[375957622,1753799442253,-460.0,0.00018866,2]
[375957623,1753799442262,-460.0,0.00018866,2]
[375957624,1753799442272,-463.06415516,0.00018866,2]
[375957625,1753799442281,-464.47976999,0.00018866,2]
[375957626,1753799442291,-460.0,0.00018866,2]
[375957627,1753799442299,-460.0,0.00018866,2]
[375957628,1753799442309,-460.0,0.00018866,2]
[375957629,1753799442318,-460.0,0.00018866,2]
[375957630,1753799442327,-460.0,0.00018866,2]
[375957631,1753799442336,-508.95244725,0.00018866,2]
[375957632,1753799442345,-460.0,0.00018866,2]
[375957633,1753799442354,-593.14,0.00018866,2]
[375957634,1753799442363,-460.0,0.00018866,2]
[375957635,1753799442373,-460.0,0.00018866,2]
[375957636,1753799442382,-460.0,0.00018866,2]
[375957637,1753799442391,-870.03,0.00018866,2]
[375957638,1753799442400,-460.0,0.00018866,2]
[375957639,1753799442409,-460.0,0.00018866,2]
[375957640,1753799442420,-460.0,0.00018866,2]
[375957641,1753799442429,-460.0,0.00018866,2]
[375957642,1753799442439,-460.0,0.00018866,2]
[375957643,1753799442448,-460.0,0.00018866,2]
[375957644,1753799442457,-460.0,0.00018866,2]
[375957645,1753799442466,-460.0,0.00018866,2]
[375957646,1753799442475,-301.90045245,0.00018866,2]
[375957647,1753799442485,-460.0,0.00018866,2]
[375957648,1753799442496,-460.0,0.00018866,2]
[375957649,1753799442505,-460.0,0.00018866,2]
[375957650,1753799442514,-460.0,0.00018866,2]
[375957651,1753799442523,-460.0,0.00018866,2]
[375957652,1753799442532,-460.0,0.00018866,2]
[375957653,1753799442542,-614.06,0.00018866,2]
[375957654,1753799442551,-460.0,0.00018866,2]
[375957655,1753799442560,-460.0,0.00018866,2]
[375957656,1753799442570,-3102.08,0.00018866,2]
[375957657,1753799442579,-549.83,0.00018866,2]
[375957658,1753799442590,-460.0,0.00018866,2]
[375957659,1753799442600,-460.0,0.00018866,2]
[375957660,1753799442609,-460.0,0.00018866,2]
[375957661,1753799442618,-460.0,0.00018866,2]
[375957662,1753799442627,-576.12,0.00018866,2]
[375957663,1753799442636,-1169.78,0.00018866,2]
[375957664,1753799442650,-460.0,0.00018866,2]
[375957665,1753799442660,-460.0,0.00018866,2]
[375957666,1753799442671,-460.0,0.00018866,2]
[375957667,1753799442682,-460.0,0.00018866,2]
[375957668,1753799442691,-460.0,0.00018866,2]
[375957669,1753799442702,-551.94,0.00018866,2]
[375957670,1753799442711,-460.0,0.00018866,2]
[375957671,1753799442722,-460.0,0.00018866,2]
[375957672,1753799442731,-460.0,0.00018866,2]
[375957673,1753799442742,-484.32,0.00018866,2]
[375957674,1753799442753,-460.0,0.00018866,2]